bitfinex/quotes_ETHUSD_20260227
["timestamp","ask_amount","ask_price","bid_price","bid_amount"]
[1772161578062,1.05473996,2025.2,2024.7,0.01779982]
[1772161578361,2.28915212,2025.3,2024.7,0.01779982]
[1772161578769,2.28915212,2025.3,2024.7,1.25250556]
[1772161579460,1.05473996,2025.2,2024.7,1.23470574]
[1772161580049,1.05473996,2025.2,2024.7,1.2542422]
[1772161580248,1.05473996,2025.4,2024.8,0.02039329]
[1772161580654,1.05473996,2025.4,2024.9,1.23462887]
[1772161580871,2.28907032,2025.4,2024.9,1.25502216]
[1772161582569,2.28907032,2025.4,2024.9,0.02039329]
[1772161582961,1.05473996,2025.4,2024.9,1.25498133]
[1772161583651,1.05473996,2025.3,2024.4,3.41822526]
[1772161583858,1.05473996,2025.3,2024.8,0.02401494]
[1772161584157,0.001,2025.2,2024.8,0.02401494]
[1772161584887,0.001,2025.2,2024.9,0.02373126]
[1772161585053,1.05473996,2025.1,2024.8,0.0011]
[1772161586694,1.05473996,2025.1,2024.5,0.0011]
[1772161587561,0.001,2025.2,2024.6,0.02724606]
[1772161588166,1.05518996,2025.2,2024.6,0.02724606]
[1772161588598,2.28964518,2025.2,2024.6,0.02724606]
[1772161588986,1.05418996,2025.1,2024.6,0.02724606]
[1772161589509,1.05418996,2025.1,2024.7,1.23475082]
[1772161589798,0.001,2025.2,2024.7,1.26354272]
[1772161590108,1.05518996,2025.2,2024.7,1.26354272]
[1772161590583,1.23544886,2025.2,2024.7,1.26354272]
[1772161590779,2.28963882,2025.2,2024.7,1.26354272]
[1772161590991,1.05418996,2025.1,2024.7,1.26354272]
[1772161591495,1.05418996,2025.0,2024.5,0.0011]
[1772161593608,1.05418996,2024.8,2024.5,0.0011]
[1772161594410,1.05418996,2025.1,2024.5,0.03345919]
[1772161595790,0.001,2025.2,2024.7,0.03303849]
[1772161596288,1.05518996,2025.2,2024.7,0.03303849]
[1772161596809,1.05518996,2025.2,2024.7,0.03413849]
[1772161596991,0.001,2024.8,2024.7,0.03413849]
[1772161597183,1.05518996,2025.2,2024.7,0.03413849]
[1772161598016,1.05518996,2025.2,2024.7,1.2688433]
[1772161600540,2.28964387,2025.2,2024.7,1.2688433]
[1772161600727,1.05518996,2025.2,2024.7,1.2688433]
[1772161601104,2.28963621,2025.2,2024.7,1.2688433]
[1772161601307,1.05518996,2025.2,2024.7,1.2688433]
[1772161601717,2.28964504,2025.2,2024.7,1.2688433]
[1772161601907,1.05418996,2025.1,2024.7,1.2688433]
[1772161602741,1.05418996,2025.1,2024.7,0.03413849]
[1772161602930,1.05418996,2025.1,2024.7,1.26888619]
[1772161606359,1.05418996,2025.0,2024.7,0.0011]
[1772161606645,1.05418996,2024.9,2024.7,0.0011]
[1772161607340,0.48827341,2025.1,2024.7,0.0011]
[1772161607341,1.05418996,2025.1,2024.7,0.0011]
[1772161607650,1.05418996,2025.1,2024.7,0.04290513]
[1772161607811,2.28869961,2025.1,2024.7,0.04290513]
[1772161608956,1.05418996,2025.1,2024.7,0.04290513]
[1772161609448,0.001,2024.9,2024.7,0.04290513]
[1772161610550,0.001,2024.9,2024.5,4.94057249]
[1772161610551,1.05518996,2024.9,2024.5,0.0011]
[1772161611354,1.05363996,2024.7,2024.5,0.0011]
[1772161613155,1.05363996,2024.7,2024.3,0.0011]
[1772161613933,1.05363996,2024.5,2024.3,0.0011]
[1772161614765,1.05363996,2024.3,2023.8,0.0011]
[1772161614967,3.49520858,2024.3,2023.8,0.0011]
[1772161615136,1.05363996,2024.0,2023.5,0.0011]
[1772161615336,1.05363996,2023.9,2023.5,0.0011]
[1772161615974,1.05363996,2023.7,2023.5,0.0011]
[1772161616343,1.05363996,2023.7,2023.3,0.0011]
[1772161617871,4.94114864,2023.9,2023.3,0.05055914]
[1772161617872,1.05308996,2023.9,2023.3,0.05055914]
[1772161618072,1.05308996,2024.1,2023.3,0.0011]
[1772161619973,1.05308996,2023.9,2023.3,0.0011]
[1772161621067,1.82,2023.9,2023.5,0.0011]
[1772161621273,1.05308996,2023.8,2023.5,0.0011]
[1772161621952,1.05253996,2023.6,2023.0,0.0011]
[1772161622151,1.05253996,2023.5,2023.0,0.0011]
[1772161622373,1.05253996,2023.5,2023.0,0.0022]
[1772161622657,2.28790093,2023.7,2023.1,0.0011]
[1772161622858,1.05253996,2023.9,2023.2,0.05418549]
[1772161623074,1.23511684,2024.2,2023.1,0.0011]
[1772161623075,1.05253996,2024.1,2023.1,0.0011]
[1772161623584,1.05253996,2024.1,2023.0,0.0011]
[1772161623891,1.05253996,2023.6,2023.1,0.0011]
[1772161624054,1.05253996,2023.5,2023.1,0.0011]
[1772161624555,1.05253996,2023.5,2023.2,0.0011]
[1772161624768,1.05253996,2023.5,2023.1,0.0011]
[1772161624950,2.28793491,2023.7,2023.1,0.05516732]
[1772161625152,1.05253996,2023.6,2023.2,0.0011]
[1772161625350,1.05253996,2023.6,2023.1,0.0011]
[1772161625778,1.05253996,2023.6,2023.2,0.0011]
[1772161625977,1.23539495,2023.7,2023.1,0.05563987]
[1772161626280,1.05253996,2023.7,2023.1,1.2913642]
[1772161626880,1.05253996,2023.7,2023.2,0.0011]
[1772161627083,1.05253996,2024.1,2023.4,0.05500742]
[1772161627651,1.05253996,2024.1,2023.5,0.0011]
[1772161627956,1.23505582,2024.2,2023.5,0.05656793]
[1772161628267,1.05253996,2024.2,2023.6,0.0011]
[1772161628781,1.05253996,2024.2,2023.7,0.0011]
[1772161628955,1.05253996,2024.2,2023.5,0.0011]
[1772161629154,1.05253996,2024.2,2023.6,0.0011]
[1772161630092,1.05253996,2024.2,2023.4,1.29238223]
[1772161630383,1.05253996,2024.2,2023.2,7.38374515]
[1772161630384,1.05253996,2024.0,2023.5,0.0011]
[1772161630623,1.05253996,2024.0,2023.3,1.712]
[1772161630802,1.05253996,2024.0,2023.3,1.77039583]
[1772161631191,1.23511684,2024.1,2023.4,0.05839583]
[1772161631593,1.05253996,2024.1,2023.5,0.0011]
[1772161632214,1.05253996,2024.1,2023.6,0.0011]
[1772161632411,2.28771782,2024.0,2023.5,1.7131]
[1772161632615,2.28771782,2024.0,2023.5,0.0011]
[1772161632804,2.28771782,2024.0,2023.5,1.7132]
[1772161633002,0.001,2023.9,2023.5,0.0022]
[1772161633316,1.05353996,2023.9,2023.5,1.7132]
[1772161633512,1.05353996,2023.9,2023.5,0.0022]
[1772161634509,1.23529993,2023.8,2023.5,0.0022]
[1772161636026,2.28759154,2024.3,2023.7,0.0584288]
[1772161636432,1.05303996,2024.2,2023.7,0.0584288]
[1772161637142,1.23511684,2024.1,2023.7,0.0584288]
[1772161639409,2.2881568,2024.1,2023.6,0.0011]
[1772161639626,2.2881568,2024.1,2023.7,0.0011]
[1772161639821,2.2881568,2024.1,2023.6,0.0011]
[1772161640132,1.05303996,2024.1,2023.6,0.0011]
[1772161641140,1.05303996,2024.1,2023.5,0.0011]
[1772161641344,1.05303996,2024.1,2023.5,0.0022]
[1772161641544,1.05303996,2023.9,2023.5,0.0011]
[1772161641713,2.28817541,2024.1,2023.6,0.0011]
[1772161641916,2.28817541,2024.1,2023.6,0.06195922]
[1772161644143,1.05303996,2024.0,2023.6,0.0011]
[1772161645041,1.05303996,2024.0,2023.8,0.0011]
[1772161645244,1.05403996,2023.9,2023.8,0.0011]
[1772161645833,1.23512464,2024.1,2023.8,0.0022]
[1772161646430,1.23512464,2024.1,2023.8,0.0011]
[1772161646635,2.27805308,2024.1,2023.8,0.0011]
[1772161647753,1.04292844,2024.0,2023.5,0.0011]
[1772161647943,1.04292844,2024.0,2023.6,0.0011]
[1772161648148,1.23523889,2023.9,2023.6,0.0011]
[1772161648337,2.27816733,2023.9,2023.6,0.0011]
[1772161648739,2.27816733,2023.9,2023.7,0.0011]
[1772161648938,2.27816733,2023.9,2023.5,0.0011]
[1772161649560,1.23520526,2024.0,2023.6,0.0011]
[1772161650051,1.23520526,2024.0,2023.5,1.07201297]
[1772161650258,2.27808241,2024.1,2023.6,1.07201297]
[1772161651028,2.27808241,2024.1,2023.6,2.30742322]
[1772161651258,2.27808241,2024.1,2023.6,1.07201297]
[1772161652357,1.23523889,2023.9,2023.6,1.07201297]
[1772161652559,1.04292844,2023.8,2023.6,0.0011]
[1772161654445,2.27828554,2023.8,2023.6,0.0011]
[1772161655341,2.27828554,2023.8,2023.5,0.0011]
[1772161655342,1.2353571,2023.8,2023.5,0.0011]
[1772161655541,1.2353571,2023.8,2023.6,0.0011]
[1772161657164,1.04292844,2023.8,2023.6,0.0011]
[1772161657468,1.04292844,2024.2,2023.7,0.0011]
[1772161657641,1.04292844,2024.2,2023.6,0.0011]
[1772161660065,1.02673847,2024.0,2023.5,0.0011]
[1772161660255,1.02673847,2024.0,2023.6,0.0011]
[1772161660562,1.02673847,2024.0,2023.5,0.0011]
[1772161660948,1.02673847,2024.0,2023.6,0.0011]
[1772161661869,1.02673847,2024.0,2023.7,0.0011]
[1772161662058,1.02673847,2023.8,2023.6,0.0011]
[1772161664861,2.26204099,2023.8,2023.6,0.0011]
[1772161665854,1.02673847,2023.7,2023.6,0.0011]
[1772161666167,1.23530252,2023.8,2023.6,0.0011]
[1772161666334,1.23530252,2023.8,2023.7,0.0011]
[1772161666536,2.26201373,2023.9,2023.6,0.0011]
[1772161666766,1.02673847,2024.2,2023.6,1.02623753]
[1772161667065,1.02673847,2024.2,2023.8,1.02513753]
[1772161667646,1.02673847,2024.2,2023.9,0.0011]
[1772161668168,1.02673847,2024.2,2023.6,1.02513753]
[1772161668470,1.02673847,2024.0,2023.5,0.0011]
[1772161668771,0.001,2023.6,2023.5,0.0011]
[1772161668953,1.02673847,2023.9,2023.5,0.0011]
[1772161669153,1.02673847,2023.9,2023.5,1.02623753]
[1772161669969,2.26185531,2024.1,2023.5,1.02623753]
[1772161670273,1.02673847,2024.0,2023.5,1.02623753]
[1772161671274,1.23523889,2023.9,2023.5,1.02623753]
[1772161675076,1.02673847,2024.0,2023.5,1.02623753]
[1772161676357,1.02673847,2024.0,2023.5,0.0011]
[1772161676674,1.02673847,2024.0,2023.5,1.02623753]
[1772161676984,1.02673847,2024.1,2023.5,1.02623753]
[1772161677365,1.23517786,2024.0,2023.5,1.02623753]
[1772161678669,1.23517786,2024.0,2023.6,1.02513753]
[1772161680276,1.23517786,2024.0,2023.8,0.0011]
[1772161680491,1.23617786,2024.0,2023.8,0.0011]
[1772161680778,2.26291633,2024.0,2023.8,0.0011]
[1772161682691,0.001,2024.0,2023.8,1.02623753]
[1772161682894,1.23617856,2024.0,2023.8,1.02623753]
[1772161683192,0.001,2024.0,2023.8,1.02623753]
[1772161683494,1.23618218,2024.0,2023.8,1.02623753]
[1772161686876,0.001,2024.0,2023.8,1.02623753]
[1772161687072,0.001,2024.0,2023.8,0.0011]
[1772161688069,1.02673847,2023.9,2023.8,0.0011]
[1772161688268,1.02773847,2024.0,2023.8,0.0011]
[1772161690207,2.25228068,2023.9,2023.8,0.0011]
[1772161691296,1.01704179,2023.6,2023.3,0.0011]
[1772161692596,1.01704179,2023.4,2023.3,0.0011]
[1772161692987,2.25240276,2023.7,2023.3,1.02739974]
[1772161693600,1.01704179,2023.6,2023.3,0.0011]
[1772161694506,1.23548307,2023.5,2023.3,0.0011]
[1772161696588,2.25252486,2023.5,2023.3,0.0011]
[1772161696789,1.01704179,2023.4,2023.3,0.0011]
[1772161698505,1.01704179,2023.4,2023.0,0.0011]
[1772161698711,1.01704179,2023.2,2023.0,0.0011]
[1772161699701,1.23560519,2023.3,2023.0,1.02739974]
[1772161701806,2.85604179,2023.5,2023.0,1.02739974]
[1772161702010,2.25257245,2023.5,2023.0,1.02739974]
[1772161703092,1.01704179,2023.3,2023.0,0.0011]
[1772161704319,1.01704179,2023.3,2023.2,0.0011]
[1772161704692,1.01804179,2023.3,2023.2,0.0011]
[1772161705117,2.25364698,2023.3,2023.2,0.0011]
[1772161707218,1.01704179,2023.2,2023.0,0.0011]
[1772161708422,1.01704179,2023.0,2022.7,0.0011]
[1772161709122,2.25270806,2023.2,2022.7,1.02739974]
[1772161709425,0.001,2023.3,2022.9,1.02629974]
[1772161710538,0.001,2023.3,2023.1,1.02629974]
[1772161712129,0.001,2023.8,2023.3,1.02629974]
[1772161712422,0.001,2023.8,2023.5,1.02629974]
[1772161713331,0.001,2023.8,2023.6,1.02629974]
[1772161713699,0.001,2023.8,2023.7,1.02629974]
[1772161713902,0.001,2024.0,2023.8,1.02629974]
[1772161714826,3.35015269,2024.5,2024.0,1.02629974]
[1772161715003,1.23493692,2024.4,2024.0,1.02629974]
[1772161715422,2.25197871,2024.4,2024.0,1.02629974]
[1772161715924,2.25197871,2024.4,2023.8,0.4891109]
[1772161715925,1.01704179,2024.3,2023.8,1.51541064]
[1772161716632,1.23493692,2024.4,2023.9,1.02629974]
[1772161716843,2.25197871,2024.4,2023.9,1.02629974]
[1772161717405,2.25197871,2024.4,2023.9,2.26152339]
[1772161718138,1.01704179,2024.5,2024.0,1.02629974]
[1772161719333,4.93959629,2024.9,2024.3,0.4891109]
[1772161719334,2.27852426,2024.8,2024.3,0.4891109]
[1772161719518,2.27852426,2024.8,2024.3,1.54529943]
[1772161720126,1.23567722,2024.9,2024.4,1.0301075]
[1772161720808,1.23563103,2024.9,2024.4,1.0301075]
[1772161721305,1.05318859,2024.8,2024.4,1.0301075]
[1772161721530,1.05318859,2024.7,2024.2,2.7061075]
[1772161721942,1.05318859,2024.7,2024.2,1.676]
[1772161722453,1.05318859,2024.7,2023.9,2.75441249]
[1772161723722,2.2888656,2024.9,2024.3,1.5192184]
[1772161724655,0.001,2024.9,2024.5,1.5192184]
[1772161725664,1.23563293,2024.9,2024.5,1.5192184]
[1772161725857,1.23563293,2024.9,2024.1,1.72420376]
[1772161725858,1.05418859,2024.9,2024.1,1.72420376]
[1772161726390,1.05418859,2024.9,2024.2,1.0301075]
[1772161727763,1.05418859,2024.9,2024.7,0.4891109]
[1772161727764,0.001,2024.9,2024.7,0.4891109]
[1772161727969,0.001,2024.9,2024.7,1.5192184]
[1772161728194,0.001,2024.9,2024.7,1.0301075]
[1772161730189,0.001,2024.9,2024.7,2.2648338]
[1772161730700,0.001,2024.9,2024.7,2.7539447]
[1772161730882,0.001,2025.2,2024.8,1.0301075]
[1772161731082,0.001,2025.2,2024.9,0.4891109]
[1772161731850,0.001,2025.2,2024.9,1.72370104]
[1772161732809,0.001,2025.2,2024.9,0.4891109]
[1772161733113,0.001,2025.2,2024.6,2.26487852]
[1772161733114,1.05418859,2025.2,2024.6,2.26487852]
[1772161733280,1.05418859,2025.2,2024.7,0.4891109]
[1772161733681,1.05418859,2025.2,2024.7,1.5192184]
[1772161733978,1.05418859,2025.2,2024.8,1.23468984]
[1772161734376,0.001,2025.2,2024.8,2.26479734]
[1772161735121,0.001,2025.2,2024.9,1.5192184]
[1772161736132,0.001,2025.2,2025.0,1.2345679]
[1772161736416,1.05318859,2025.6,2025.1,0.4891109]
[1772161737227,1.05318859,2025.8,2025.3,1.5192184]
[1772161737733,1.05318859,2025.8,2025.3,1.0301075]
[1772161738501,1.05318859,2026.0,2025.4,1.0301075]
[1772161738700,1.05318859,2026.0,2025.5,0.4891109]
[1772161739315,1.05318859,2026.0,2025.4,1.0301075]
[1772161740496,1.05318859,2026.0,2025.3,1.23434615]
[1772161741320,1.23401944,2025.9,2025.3,1.23434615]
[1772161741624,0.001,2025.8,2025.3,2.26445365]
[1772161742005,0.001,2025.8,2025.4,1.0301075]
[1772161742512,1.05318859,2026.1,2025.5,1.0301075]
[1772161742839,2.28708741,2026.1,2025.5,1.0301075]
[1772161742995,1.05318859,2026.0,2025.3,4.70375286]
[1772161743194,1.05318859,2026.0,2025.3,1.0301075]
[1772161743394,1.05318859,2025.8,2025.2,1.679]
[1772161743616,1.05318859,2025.8,2025.2,3.94353288]
[1772161745420,1.05318859,2026.0,2025.3,2.26449154]
[1772161745638,1.05318859,2026.2,2025.4,1.0301075]
[1772161745801,1.05318859,2026.2,2025.5,1.0301075]
[1772161747603,1.23389763,2026.1,2025.6,2.26430971]
[1772161747906,2.28708622,2026.1,2025.6,2.26430971]
[1772161748731,1.05318859,2026.1,2025.6,2.26430971]
[1772161749434,1.05318859,2026.6,2025.7,1.0301075]
[1772161749636,1.05318859,2026.4,2025.6,2.91320221]
[1772161750508,2.2468334,2026.6,2025.9,1.02362175]
[1772161750923,1.01320017,2026.6,2025.9,1.02362175]
[1772161751625,2.2468004,2026.6,2026.1,1.02362175]
[1772161752016,2.2468004,2026.6,2025.9,2.25760051]
[1772161752216,1.01320017,2026.7,2026.0,20.705567]
[1772161752405,1.01320017,2026.7,2025.9,3.67327797]
[1772161752406,1.01320017,2026.7,2026.1,2.70162175]
[1772161752727,1.01320017,2026.7,2026.2,1.02362175]
[1772161753536,0.001,2026.4,2026.2,1.02362175]
[1772161753725,0.001,2026.8,2026.4,1.02362175]
[1772161753926,1.01320017,2026.7,2026.1,2.91387316]
[1772161754306,0.001,2026.8,2026.2,1.02362175]
[1772161755230,0.001,2026.8,2026.4,1.02362175]
[1772161755610,0.001,2026.8,2026.5,2.25727583]
[1772161755811,0.001,2026.8,2026.6,1.02362175]
[1772161756105,0.001,2026.8,2026.5,1.23365408]
[1772161756808,1.01320017,2027.1,2026.6,1.02362175]
[1772161758042,1.01320017,2027.1,2026.6,2.25719976]
[1772161758439,1.01420017,2027.3,2026.7,1.02362175]
[1772161760210,1.01320017,2027.1,2026.4,1.681]
[1772161760407,1.01320017,2027.1,2026.5,1.681]
[1772161761208,1.01320017,2027.1,2026.4,2.16737977]
[1772161761412,1.01320017,2027.1,2026.4,3.19100152]
[1772161762938,0.001,2027.3,2026.5,1.02362175]
[1772161763159,1.01320017,2027.2,2026.8,0.48737977]
[1772161763446,1.01320017,2027.2,2026.6,0.48737977]
[1772161763627,1.01320017,2027.2,2026.4,4.42470518]
[1772161764420,2.24737157,2027.3,2026.8,0.48737977]
[1772161764644,1.01420017,2027.3,2026.8,0.48737977]
[1772161765234,1.01420017,2027.3,2026.8,1.72084492]
[1772161765842,0.001,2026.9,2026.8,1.72084492]
[1772161766021,1.01320017,2027.2,2026.8,1.72084492]
[1772161771278,1.01320017,2027.2,2026.8,1.23346515]
[1772161772264,1.01320017,2027.2,2026.7,1.96430156]
[1772161772635,1.01320017,2027.1,2026.7,1.96430156]
[1772161772940,1.01320017,2027.1,2026.6,2.25828244]
[1772161773344,1.01320017,2027.1,2026.6,0.0011]
[1772161773568,1.01320017,2027.1,2026.6,2.25831374]
[1772161773773,1.01320017,2027.1,2026.7,1.02362175]
[1772161775669,2.24650542,2027.1,2026.7,1.02362175]
[1772161776236,1.01320017,2027.0,2026.6,0.0011]
[1772161776473,2.24661079,2026.9,2026.6,0.0011]
[1772161776840,1.23341062,2026.9,2026.6,1.02472175]
[1772161777044,1.23339842,2027.0,2026.6,1.02472175]
[1772161778768,1.23339842,2027.0,2026.8,0.0011]
[1772161778980,0.001,2026.9,2026.8,0.0011]
[1772161779975,2.24653667,2027.1,2026.8,0.0011]
[1772161780172,0.99672511,2027.0,2026.8,0.0011]
[1772161781677,0.99672511,2026.9,2026.6,0.0011]
[1772161781987,0.99672511,2026.7,2026.4,0.0011]
[1772161783877,0.99672511,2026.5,2026.4,0.0011]
[1772161784173,0.99672511,2026.5,2026.1,0.0011]
[1772161784477,0.99672511,2026.5,2026.2,0.0011]
[1772161786075,1.23371496,2026.4,2026.2,0.0011]
[1772161786254,0.99672511,2026.3,2026.1,0.0011]
[1772161786647,0.99672511,2026.3,2025.5,3.96116498]
[1772161786853,0.99672511,2026.3,2025.6,0.0011]
[1772161787558,0.99672511,2026.3,2025.7,0.0011]
[1772161787766,0.99672511,2026.3,2025.6,0.0011]
[1772161788075,0.99672511,2026.1,2025.6,0.0011]
[1772161788273,0.99672511,2025.9,2025.7,0.0011]
[1772161788463,0.99672511,2025.9,2025.6,0.0011]
[1772161790376,0.99672511,2026.1,2025.7,0.0011]
[1772161790580,0.99672511,2026.1,2025.7,1.04894503]
[1772161790777,2.23062729,2026.1,2025.7,1.04894503]
[1772161791294,0.99672511,2026.0,2025.7,0.0011]
[1772161791766,0.99672511,2026.0,2025.8,0.0011]
[1772161792082,0.99672511,2026.0,2025.6,0.0011]
[1772161792083,0.93672511,2026.0,2025.6,0.0011]
[1772161792467,2.17069619,2026.0,2025.6,0.0011]
[1772161792665,2.17069619,2026.0,2025.7,0.0011]
[1772161792977,2.17069619,2026.0,2025.9,0.0011]
[1772161794372,0.99672511,2025.9,2025.7,0.0011]
[1772161794578,2.23076113,2025.9,2025.8,0.0011]
[1772161795579,2.23076113,2025.9,2025.7,0.0011]
[1772161795891,0.99672511,2025.8,2025.7,0.0022]
[1772161796471,4.06052801,2026.3,2025.8,1.04784503]
[1772161796663,0.99672511,2026.2,2025.8,1.04894503]
[1772161797289,3.0638029,2026.3,2025.9,0.0011]
[1772161798294,4.06052801,2026.3,2025.9,0.0011]
[1772161798892,0.99672511,2026.2,2025.8,1.04784503]
[1772161799076,0.99672511,2026.2,2025.9,0.0011]
[1772161799272,0.99672511,2026.6,2025.9,1.04894503]
[1772161799472,0.99672511,2026.6,2026.0,1.04894503]
[1772161799675,0.99672511,2026.6,2026.0,1.04784503]
[1772161800217,5.93063592,2026.8,2026.2,1.04784503]
[1772161800498,2.23019659,2026.8,2026.2,1.04784503]
[1772161801194,0.99672511,2026.7,2026.2,1.04784503]
[1772161801702,0.99672511,2026.7,2026.3,0.0011]
[1772161802805,2.23117708,2026.9,2026.4,1.04894503]
[1772161802985,0.001,2026.9,2026.6,1.04784503]
[1772161803365,0.001,2026.9,2026.4,2.28151926]
[1772161803567,0.001,2026.9,2026.5,0.0011]
[1772161803797,0.001,2026.9,2026.5,1.04894503]
[1772161804899,0.99772511,2026.9,2026.6,0.0011]
[1772161805206,0.99772511,2026.7,2026.4,0.0011]
[1772161805376,0.99772511,2026.7,2026.2,1.04894503]
[1772161805569,0.99772511,2026.7,2026.3,1.04894503]
[1772161805777,0.99772511,2026.7,2026.3,1.04784503]
[1772161806796,0.001,2026.7,2026.4,1.04894503]
[1772161807095,0.001,2026.9,2026.4,1.04784503]
[1772161807298,0.001,2026.9,2026.6,1.04784503]
[1772161808073,0.001,2026.9,2026.7,0.0011]
[1772161808274,0.001,2026.9,2026.7,1.04784503]
[1772161808878,0.001,2026.9,2026.4,1.04784503]
[1772161809090,0.001,2026.9,2026.5,2.28149911]
[1772161809699,0.001,2026.9,2026.6,1.04784503]
[1772161810111,1.00876876,2026.8,2026.3,1.23373487]
[1772161810416,1.00876876,2026.8,2025.9,1.02354654]
[1772161810749,1.00876876,2026.8,2026.0,1.02354654]
[1772161811094,1.00876876,2026.8,2026.1,1.23389763]
[1772161811281,1.00876876,2026.8,2026.2,1.02354654]
[1772161811699,1.00876876,2026.8,2026.3,0.0011]
[1772161812902,1.00876876,2026.8,2026.4,0.0011]
[1772161813102,0.001,2026.9,2026.4,1.02354654]
[1772161813408,0.001,2026.9,2026.5,1.02354654]
[1772161813612,1.00976876,2026.9,2026.5,0.0011]
[1772161813902,1.00976876,2026.9,2026.1,2.25631346]
[1772161816700,1.00876876,2026.7,2026.1,2.25631346]
[1772161817906,1.00876876,2026.7,2026.2,1.02244654]
[1772161818606,1.00976876,2026.7,2026.2,2.25624651]
[1772161818814,2.24330398,2026.7,2026.2,2.25624651]
[1772161818985,2.24330398,2026.7,2026.3,0.0011]
[1772161818986,1.00876876,2026.6,2026.3,0.0011]
[1772161819183,1.00876876,2026.6,2026.2,0.0011]
[1772161820086,1.00876876,2026.6,2026.1,0.0011]
[1772161820281,1.00876876,2026.6,2026.1,0.0022]
[1772161820616,0.001,2026.7,2026.2,1.02354654]
[1772161820782,2.24332414,2026.7,2026.2,1.02354654]
[1772161820982,2.24332414,2026.7,2026.2,2.25738269]
[1772161821287,1.00876876,2026.6,2026.2,0.0011]
[1772161821493,1.23455538,2026.7,2026.3,0.0011]
[1772161821692,0.001,2026.7,2026.3,0.0011]
[1772161823712,1.00976876,2026.7,2026.3,0.0011]
[1772161823882,1.00976876,2026.7,2026.1,0.0011]
[1772161824085,1.00976876,2026.7,2026.1,1.23499499]
[1772161824504,1.00976876,2026.7,2026.1,0.0011]
[1772161824998,1.00976876,2026.7,2026.1,1.2349876]
[1772161825184,1.00976876,2026.7,2026.1,2.25743414]
[1772161825380,1.00976876,2026.7,2026.2,1.02244654]
[1772161826515,2.24330636,2026.7,2026.2,2.2562292]
[1772161826712,2.24330636,2026.7,2026.2,1.02244654]
[1772161827008,1.00876876,2026.6,2026.1,0.0011]
[1772161827803,1.00876876,2026.6,2026.1,2.25743846]
[1772161828013,1.00876876,2026.6,2026.2,1.02244654]
[1772161829113,1.00876876,2026.5,2026.1,0.0011]
[1772161831488,1.00876876,2026.4,2026.3,0.0011]
[1772161833016,0.001,2026.5,2026.3,0.0011]
[1772161834117,1.23465945,2026.5,2026.3,0.0011]
[1772161835306,1.00976876,2026.5,2026.3,0.0011]
[1772161836319,1.00876876,2026.4,2026.1,0.0011]
[1772161838726,2.24508728,2026.3,2026.1,0.0011]
[1772161840226,0.93071557,2026.2,2026.1,0.0011]
[1772161840829,2.1645523,2026.2,2026.1,0.0011]
[1772161841123,2.1645523,2026.2,2026.0,0.0011]
[1772161843306,0.001,2026.5,2026.0,1.00550745]
[1772161844207,0.93071557,2026.4,2026.0,1.00550745]
[1772161844409,1.23468444,2026.5,2026.0,1.00550745]
[1772161844630,2.16540001,2026.5,2026.0,1.00550745]
[1772161845412,2.16540001,2026.5,2026.3,0.0011]
[1772161846433,1.23468444,2026.5,2026.3,0.0011]
[1772161846636,0.001,2026.5,2026.3,0.0011]
[1772161847425,0.001,2026.5,2026.3,1.00550745]
[1772161847627,0.001,2026.5,2026.3,0.98083256]
[1772161849528,0.93171557,2026.5,2026.1,1.00440745]
[1772161852039,2.16443053,2026.4,2026.0,0.0011]
[1772161852637,2.16443053,2026.4,2026.0,1.00550745]
[1772161853737,2.16443053,2026.4,2026.1,0.12]
[1772161853940,0.93071557,2026.3,2026.1,0.12]
[1772161854136,2.1645523,2026.2,2026.0,1e-08]
[1772161856440,1.23380767,2026.3,2026.0,1.00440746]
[1772161857610,1.23380767,2026.3,2026.2,0.0011]
[1772161857842,2.16552324,2026.3,2026.2,0.0011]
[1772161861150,0.001,2026.3,2026.2,1.00550745]
[1772161861355,0.93171557,2026.5,2026.3,1.00440745]
[1772161861356,0.001,2026.5,2026.3,1.00440745]
[1772161862619,0.001,2026.9,2026.5,1.00440745]
[1772161862825,0.001,2026.9,2026.6,1.00440745]
[1772161863550,0.001,2026.9,2026.8,1.00440745]
[1772161863748,0.001,2026.9,2026.4,1.00440745]
[1772161863749,0.93171557,2026.9,2026.4,1.00440745]
[1772161865341,0.93171557,2026.9,2026.2,1.00550745]
[1772161865545,0.93071557,2026.7,2026.2,1.00550745]
[1772161865755,0.93071557,2026.7,2026.3,1.49205658]
[1772161867728,1.23359321,2026.6,2026.3,1.49205658]
[1772161869251,1.23359321,2026.6,2026.5,0.0011]
[1772161869733,4.93522611,2026.7,2026.5,0.0011]
[1772161869938,5.88703488,2026.7,2026.5,0.0011]
[1772161872864,0.95180877,2026.6,2026.5,0.0011]
[1772161875152,0.001,2026.7,2026.5,0.95899145]
[1772161879382,0.48764913,2026.6,2026.5,0.0011]
[1772161879582,0.95180877,2026.4,2026.3,0.0011]
[1772161879754,2.18552373,2026.4,2026.3,0.0011]
[1772161880266,0.95180877,2026.3,2026.0,1e-08]
[1772161881583,1.23383673,2026.2,2026.0,1e-08]
[1772161881757,2.1856455,2026.2,2026.0,1e-08]
[1772161882366,0.95180877,2026.1,2026.0,1e-08]
[1772161883292,0.95180877,2026.1,2025.8,0.0011]
[1772161883967,1.23395853,2026.0,2025.8,0.0011]
[1772161885095,0.95180877,2025.9,2025.8,0.0011]
[1772161886091,1.23388202,2026.2,2025.9,0.95789145]
[1772161886999,0.95180877,2026.1,2025.8,0.0011]
[1772161887968,1.23395853,2026.0,2025.8,0.0011]
[1772161890264,0.95180877,2026.0,2025.8,0.0011]
[1772161891167,0.95180877,2026.0,2025.7,0.0011]
[1772161892300,2.18582821,2025.9,2025.7,0.0011]
[1772161892592,1.23401944,2025.9,2025.7,0.0011]
[1772161894202,0.95180877,2025.8,2025.3,0.0011]
[1772161894512,0.95180877,2025.6,2025.3,0.0011]
[1772161895010,1.23414128,2025.7,2025.3,0.95899145]
[1772161895567,1.23414128,2025.7,2025.3,0.0011]
[1772161895568,0.95180877,2025.6,2025.3,0.0011]
[1772161896502,0.95180877,2025.5,2025.3,0.0011]
[1772161898391,1.23432408,2025.4,2025.3,0.0011]
[1772161898599,2.16642268,2025.4,2025.3,0.0011]
[1772161899194,2.16642268,2025.4,2025.0,0.0011]
[1772161901382,0.90926712,2025.3,2025.0,0.0011]
[1772161902188,2.1435912,2025.4,2025.0,0.0011]
[1772161902389,2.1435912,2025.4,2025.0,0.9357493]
[1772161905096,0.90926712,2025.3,2025.0,0.0011]
[1772161906104,1.23432408,2025.4,2024.5,2.5736493]